[Event "Titled Tuesday Blitz December 27 Early 2022"]
[White "Roque Sola, Jose Luis"]
[Black "Majdan, Joanna"]
[WhiteFideId "5120390"]
[BlackFideId "1121979"]
[WhiteElo "2217"]
[BlackElo "2306"]
[Result "0-1"]
[Round "03"]
[TimeControl "180+2"]
[Date "2022.12.27"]
[WhiteClock "0:00:05"]
[BlackClock "0:00:32"]

1. c4 {[%clk 0:03:00]}  e5 {[%clk 0:02:58]} 2. Nc3 {[%clk 0:02:58]}  Nf6 {[%clk 0:02:59]} 3. Nf3 {[%clk 0:02:56]}  Nc6 {[%clk 0:02:59]} 4. g3 {[%clk 0:02:53]}  d5 {[%clk 0:02:59]} 5. cxd5 {[%clk 0:02:52]}  Nxd5 {[%clk 0:02:59]} 6. Bg2 {[%clk 0:02:50]}  Be6 {[%clk 0:02:59]} 7. O-O {[%clk 0:02:49]}  Nb6 {[%clk 0:02:59]} 8. d3 {[%clk 0:02:44]}  Be7 {[%clk 0:03:00]} 9. a3 {[%clk 0:02:30]}  O-O {[%clk 0:03:00]} 10. b4 {[%clk 0:02:27]}  f6 {[%clk 0:02:58]} 11. Be3 {[%clk 0:02:18]}  Nd4 {[%clk 0:02:57]} 12. Bxd4 {[%clk 0:01:47]}  exd4 {[%clk 0:02:58]} 13. Nb5 {[%clk 0:01:47]}  c5 {[%clk 0:02:55]} 14. bxc5 {[%clk 0:01:45]}  Bxc5 {[%clk 0:02:56]} 15. Rc1 {[%clk 0:01:41]}  Qe7 {[%clk 0:02:16]} 16. Nfxd4 {[%clk 0:01:11]}  Bf7 {[%clk 0:01:50]} 17. Nf5 {[%clk 0:01:03]}  Qe5 {[%clk 0:01:51]} 18. d4 {[%clk 0:00:58]}  Qxf5 {[%clk 0:01:49]} 19. Rxc5 {[%clk 0:00:58]}  Qd7 {[%clk 0:01:46]} 20. Nc7 {[%clk 0:00:41]}  Rac8 {[%clk 0:01:43]} 21. Qc2 {[%clk 0:00:42]}  Qxd4 {[%clk 0:01:36]} 22. Bxb7 {[%clk 0:00:42]}  Rb8 {[%clk 0:01:34]} 23. Bg2 {[%clk 0:00:41]}  Nd7 {[%clk 0:01:32]} 24. Rc3 {[%clk 0:00:30]}  Ne5 {[%clk 0:01:22]} 25. Rd1 {[%clk 0:00:29]}  Qb6 {[%clk 0:01:17]} 26. a4 {[%clk 0:00:22]}  Bb3 {[%clk 0:01:05]} 27. Bd5+ {[%clk 0:00:18]}  Bxd5 {[%clk 0:01:03]} 28. Nxd5 {[%clk 0:00:18]}  Qa6 {[%clk 0:00:59]} 29. Ne7+ {[%clk 0:00:18]}  Kh8 {[%clk 0:00:58]} 30. Rc7 {[%clk 0:00:15]}  Ng4 {[%clk 0:00:54]} 31. e3 {[%clk 0:00:14]}  Qa5 {[%clk 0:00:50]} 32. Rd5 {[%clk 0:00:10]}  Qe1+ {[%clk 0:00:48]} 33. Kg2 {[%clk 0:00:10]}  Rb1 {[%clk 0:00:43]} 34. Nf5 {[%clk 0:00:08]}  Qf1+ {[%clk 0:00:40]} 35. Kf3 {[%clk 0:00:08]}  Nxh2+ {[%clk 0:00:36]} 36. Ke4 {[%clk 0:00:07]}  Qh1+ {[%clk 0:00:32]} 37. Kd4 {[%clk 0:00:05]}  Rd1+ {[%clk 0:00:32]} 0-1


[Site "https://www.chess.com"]

[Event "Titled Tuesday Blitz December 27 Early 2022"]
[White "Royal, Shreyas"]
[Black "Costachi, Mihnea"]
[WhiteFideId "448869"]
[BlackFideId "1217518"]
[WhiteElo "2438"]
[BlackElo "2476"]
[Result "1-0"]
[Round "03"]
[TimeControl "180+2"]
[Date "2022.12.27"]
[WhiteClock "0:01:39"]
[BlackClock "0:00:21"]

1. e4 {[%clk 0:03:00]}  c5 {[%clk 0:02:58]} 2. Nf3 {[%clk 0:02:59]}  d6 {[%clk 0:02:58]} 3. d4 {[%clk 0:02:59]}  cxd4 {[%clk 0:02:59]} 4. Nxd4 {[%clk 0:03:00]}  Nf6 {[%clk 0:02:59]} 5. Nc3 {[%clk 0:03:00]}  Nc6 {[%clk 0:03:00]} 6. Bc4 {[%clk 0:02:57]}  e6 {[%clk 0:02:51]} 7. Be3 {[%clk 0:02:55]}  Be7 {[%clk 0:02:46]} 8. Qe2 {[%clk 0:02:53]}  a6 {[%clk 0:02:42]} 9. f3 {[%clk 0:02:45]}  Qc7 {[%clk 0:02:40]} 10. g4 {[%clk 0:02:38]}  b5 {[%clk 0:02:34]} 11. Nxc6 {[%clk 0:02:34]}  bxc4 {[%clk 0:02:20]} 12. Nxe7 {[%clk 0:02:34]}  Kxe7 {[%clk 0:02:20]} 13. g5 {[%clk 0:02:29]}  Nd7 {[%clk 0:02:20]} 14. O-O-O {[%clk 0:02:25]}  Rd8 {[%clk 0:02:09]} 15. Bf4 {[%clk 0:02:00]}  Ne5 {[%clk 0:01:55]} 16. Bg3 {[%clk 0:02:01]}  Rb8 {[%clk 0:01:52]} 17. f4 {[%clk 0:02:00]}  Ng6 {[%clk 0:01:18]} 18. f5 {[%clk 0:01:59]}  Ne5 {[%clk 0:01:18]} 19. f6+ {[%clk 0:01:53]}  Kf8 {[%clk 0:01:18]} 20. Bxe5 {[%clk 0:01:47]}  dxe5 {[%clk 0:01:17]} 21. Qxc4 {[%clk 0:01:47]}  Rxd1+ {[%clk 0:00:33]} 22. Rxd1 {[%clk 0:01:48]}  Qb6 {[%clk 0:00:26]} 23. Qc5+ {[%clk 0:01:40]}  Qxc5 {[%clk 0:00:21]} 24. Rd8# {[%clk 0:01:39]} 1-0


[Site "https://www.chess.com"]

[Event "Titled Tuesday Blitz December 27 Early 2022"]
[White "Samunenkov, Ihor"]
[Black "Akylbekov, Nasyr"]
[WhiteFideId "14187086"]
[BlackFideId "13800353"]
[WhiteElo "2501"]
[BlackElo "2239"]
[Result "1-0"]
[Round "03"]
[TimeControl "180+2"]
[Date "2022.12.27"]
[WhiteClock "0:01:34"]
[BlackClock "0:01:06"]

1. d4 {[%clk 0:03:00]}  Nf6 {[%clk 0:02:58]} 2. Nf3 {[%clk 0:03:01]}  e6 {[%clk 0:02:58]} 3. c4 {[%clk 0:03:00]}  Bb4+ {[%clk 0:02:57]} 4. Bd2 {[%clk 0:03:00]}  Qe7 {[%clk 0:02:57]} 5. g3 {[%clk 0:02:50]}  b6 {[%clk 0:02:55]} 6. Bg2 {[%clk 0:02:50]}  Bb7 {[%clk 0:02:55]} 7. O-O {[%clk 0:02:50]}  O-O {[%clk 0:02:56]} 8. Bf4 {[%clk 0:02:46]}  d5 {[%clk 0:02:54]} 9. c5 {[%clk 0:02:30]}  bxc5 {[%clk 0:02:05]} 10. a3 {[%clk 0:02:29]}  Ba5 {[%clk 0:01:35]} 11. dxc5 {[%clk 0:02:29]}  c6 {[%clk 0:01:35]} 12. Bd6 {[%clk 0:02:29]}  Qd8 {[%clk 0:01:34]} 13. Bxf8 {[%clk 0:02:27]}  Qxf8 {[%clk 0:01:34]} 14. b4 {[%clk 0:02:16]}  Bc7 {[%clk 0:01:35]} 15. Nc3 {[%clk 0:02:13]}  Nbd7 {[%clk 0:01:35]} 16. e4 {[%clk 0:02:01]}  Ne5 {[%clk 0:01:25]} 17. exd5 {[%clk 0:01:53]}  exd5 {[%clk 0:01:24]} 18. Nd4 {[%clk 0:01:51]}  a5 {[%clk 0:01:15]} 19. Rb1 {[%clk 0:01:37]}  axb4 {[%clk 0:01:10]} 20. axb4 {[%clk 0:01:38]}  Nc4 {[%clk 0:01:07]} 21. b5 {[%clk 0:01:35]}  Qxc5 {[%clk 0:01:07]} 22. bxc6 {[%clk 0:01:34]}  Bxc6 {[%clk 0:01:07]} 23. Nxc6 {[%clk 0:01:34]}  Qxc6 {[%clk 0:01:06]} 24. Nxd5 {[%clk 0:01:34]} 1-0


[Site "https://www.chess.com"]

[Event "Titled Tuesday Blitz December 27 Early 2022"]
[White "Sankalan Shah"]
[Black "Toncheva, Nadya"]
[WhiteFideId "25600362"]
[BlackFideId "2924056"]
[WhiteElo "2179"]
[BlackElo "2295"]
[Result "0-1"]
[Round "03"]
[TimeControl "180+2"]
[Date "2022.12.27"]
[WhiteClock "0:00:02"]
[BlackClock "0:00:23"]

1. d4 {[%clk 0:03:00]}  d5 {[%clk 0:03:00]} 2. c4 {[%clk 0:03:00]}  dxc4 {[%clk 0:03:00]} 3. e3 {[%clk 0:02:59]}  Nf6 {[%clk 0:03:01]} 4. Bxc4 {[%clk 0:02:59]}  e6 {[%clk 0:03:01]} 5. Nf3 {[%clk 0:02:59]}  c5 {[%clk 0:03:01]} 6. O-O {[%clk 0:02:56]}  Nc6 {[%clk 0:03:01]} 7. Nc3 {[%clk 0:02:53]}  a6 {[%clk 0:03:01]} 8. a4 {[%clk 0:02:52]}  b6 {[%clk 0:02:52]} 9. b3 {[%clk 0:02:39]}  Qc7 {[%clk 0:02:50]} 10. Bb2 {[%clk 0:02:34]}  Bb7 {[%clk 0:02:50]} 11. Rc1 {[%clk 0:02:33]}  Rd8 {[%clk 0:02:48]} 12. Qe2 {[%clk 0:02:15]}  Nb4 {[%clk 0:02:37]} 13. dxc5 {[%clk 0:02:05]}  Bxc5 {[%clk 0:02:37]} 14. Rfd1 {[%clk 0:01:58]}  O-O {[%clk 0:02:36]} 15. e4 {[%clk 0:01:29]}  Nd7 {[%clk 0:02:08]} 16. Rd2 {[%clk 0:01:15]}  Nb8 {[%clk 0:02:01]} 17. Rcd1 {[%clk 0:01:00]}  N8c6 {[%clk 0:01:51]} 18. h3 {[%clk 0:00:51]}  h6 {[%clk 0:01:50]} 19. e5 {[%clk 0:00:42]}  Rxd2 {[%clk 0:01:40]} 20. Rxd2 {[%clk 0:00:37]}  Rd8 {[%clk 0:01:41]} 21. Ne4 {[%clk 0:00:34]}  Bf8 {[%clk 0:01:22]} 22. Qd1 {[%clk 0:00:15]}  Rxd2 {[%clk 0:01:14]} 23. Qxd2 {[%clk 0:00:10]}  Na5 {[%clk 0:01:12]} 24. Bd3 {[%clk 0:00:08]}  Nxb3 {[%clk 0:01:08]} 25. Qe2 {[%clk 0:00:07]}  Nc1 {[%clk 0:01:04]} 26. Bxc1 {[%clk 0:00:07]}  Qxc1+ {[%clk 0:01:05]} 27. Kh2 {[%clk 0:00:08]}  Nxd3 {[%clk 0:01:04]} 28. Qxd3 {[%clk 0:00:08]}  Qc6 {[%clk 0:00:57]} 29. Ned2 {[%clk 0:00:05]}  Qxa4 {[%clk 0:00:55]} 30. Qd8 {[%clk 0:00:03]}  Qb4 {[%clk 0:00:47]} 31. Nf1 {[%clk 0:00:02]}  Bxf3 {[%clk 0:00:46]} 32. gxf3 {[%clk 0:00:02]}  a5 {[%clk 0:00:37]} 33. Ne3 {[%clk 0:00:02]}  a4 {[%clk 0:00:32]} 34. Kg2 {[%clk 0:00:03]}  a3 {[%clk 0:00:32]} 35. Nc2 {[%clk 0:00:04]}  Qc5 {[%clk 0:00:27]} 36. Ne3 {[%clk 0:00:02]}  Qxe5 {[%clk 0:00:24]} 37. Nc4 {[%clk 0:00:02]}  Qg5+ {[%clk 0:00:23]} 38. Kh1 {[%clk 0:00:02]}  Qxd8 {[%clk 0:00:23]} 0-1


[Site "https://www.chess.com"]

[Event "Titled Tuesday Blitz December 27 Early 2022"]
[White "Sharifov, Mekhriddin"]
[Black "Moroni, Luca Jr"]
[WhiteFideId "14701545"]
[BlackFideId "865834"]
[WhiteElo "2209"]
[BlackElo "2535"]
[Result "0-1"]
[Round "03"]
[TimeControl "180+2"]
[Date "2022.12.27"]
[WhiteClock "0:00:23"]
[BlackClock "0:00:23"]

1. e4 {[%clk 0:03:00]}  g6 {[%clk 0:02:59]} 2. d4 {[%clk 0:03:00]}  Bg7 {[%clk 0:02:59]} 3. Nc3 {[%clk 0:03:01]}  a6 {[%clk 0:02:59]} 4. a4 {[%clk 0:02:59]}  d6 {[%clk 0:02:56]} 5. f4 {[%clk 0:02:59]}  Nf6 {[%clk 0:02:52]} 6. Nf3 {[%clk 0:03:00]}  O-O {[%clk 0:02:52]} 7. Bd3 {[%clk 0:02:58]}  Nc6 {[%clk 0:02:50]} 8. O-O {[%clk 0:02:57]}  e5 {[%clk 0:02:49]} 9. dxe5 {[%clk 0:02:58]}  dxe5 {[%clk 0:02:50]} 10. Qe1 {[%clk 0:02:59]}  Bg4 {[%clk 0:02:29]} 11. Qh4 {[%clk 0:02:35]}  Bxf3 {[%clk 0:02:11]} 12. Rxf3 {[%clk 0:02:36]}  Nh5 {[%clk 0:01:39]} 13. Qxd8 {[%clk 0:02:26]}  Raxd8 {[%clk 0:01:40]} 14. Nd5 {[%clk 0:02:24]}  exf4 {[%clk 0:01:31]} 15. Nxc7 {[%clk 0:02:12]}  Ne5 {[%clk 0:01:26]} 16. Rh3 {[%clk 0:02:11]}  Rd4 {[%clk 0:01:03]} 17. Nd5 {[%clk 0:02:06]}  f5 {[%clk 0:00:59]} 18. Ne7+ {[%clk 0:01:46]}  Kf7 {[%clk 0:00:59]} 19. Nxf5 {[%clk 0:01:47]}  gxf5 {[%clk 0:00:59]} 20. Rxh5 {[%clk 0:01:46]}  fxe4 {[%clk 0:00:58]} 21. Bxf4 {[%clk 0:01:39]}  exd3 {[%clk 0:00:39]} 22. Bxe5 {[%clk 0:01:38]}  Bxe5 {[%clk 0:00:39]} 23. Rxe5 {[%clk 0:01:39]}  dxc2 {[%clk 0:00:39]} 24. Ree1 {[%clk 0:01:31]}  Rc8 {[%clk 0:00:38]} 25. Kf2 {[%clk 0:01:10]}  Rb4 {[%clk 0:00:34]} 26. Rac1 {[%clk 0:01:03]}  b5 {[%clk 0:00:29]} 27. axb5 {[%clk 0:00:56]}  axb5 {[%clk 0:00:30]} 28. Ke3 {[%clk 0:00:50]}  Rxb2 {[%clk 0:00:30]} 29. Kd3 {[%clk 0:00:45]}  b4 {[%clk 0:00:30]} 30. Re2 {[%clk 0:00:36]}  b3 {[%clk 0:00:30]} 31. Rf1+ {[%clk 0:00:37]}  Kg8 {[%clk 0:00:29]} 32. Rc1 {[%clk 0:00:28]}  Rb1 {[%clk 0:00:22]} 33. Ree1 {[%clk 0:00:23]}  Rxc1 {[%clk 0:00:23]} 0-1


[Site "https://www.chess.com"]

[Event "Titled Tuesday Blitz December 27 Early 2022"]
[White "Sonis, Francesco"]
[Black "Bazarov, Konstantin"]
[WhiteFideId "895733"]
[BlackFideId "4137000"]
[WhiteElo "2554"]
[BlackElo "2235"]
[Result "1-0"]
[Round "03"]
[TimeControl "180+2"]
[Date "2022.12.27"]
[WhiteClock "0:00:16"]
[BlackClock "0:00:07"]

1. d4 {[%clk 0:02:56]}  Nf6 {[%clk 0:02:59]} 2. Nc3 {[%clk 0:02:55]}  d5 {[%clk 0:02:58]} 3. Bf4 {[%clk 0:02:54]}  c6 {[%clk 0:02:56]} 4. e3 {[%clk 0:02:51]}  Bf5 {[%clk 0:02:56]} 5. f3 {[%clk 0:02:50]}  h6 {[%clk 0:02:54]} 6. g4 {[%clk 0:02:50]}  Bg6 {[%clk 0:02:53]} 7. h4 {[%clk 0:02:50]}  e6 {[%clk 0:02:53]} 8. h5 {[%clk 0:02:51]}  Bh7 {[%clk 0:02:53]} 9. Bd3 {[%clk 0:02:52]}  Bxd3 {[%clk 0:02:52]} 10. Qxd3 {[%clk 0:02:53]}  Bd6 {[%clk 0:02:49]} 11. Nge2 {[%clk 0:02:52]}  Qc7 {[%clk 0:02:48]} 12. O-O-O {[%clk 0:02:52]}  Nbd7 {[%clk 0:02:48]} 13. Kb1 {[%clk 0:02:50]}  O-O-O {[%clk 0:02:47]} 14. a3 {[%clk 0:02:48]}  Nb6 {[%clk 0:02:44]} 15. Ka2 {[%clk 0:02:35]}  Nc4 {[%clk 0:02:42]} 16. Bxd6 {[%clk 0:02:28]}  Nxd6 {[%clk 0:02:37]} 17. Nb1 {[%clk 0:02:29]}  Kb8 {[%clk 0:02:32]} 18. Rc1 {[%clk 0:02:29]}  c5 {[%clk 0:02:31]} 19. dxc5 {[%clk 0:02:28]}  Qxc5 {[%clk 0:02:31]} 20. Qd4 {[%clk 0:02:27]}  Qc6 {[%clk 0:02:20]} 21. Rhd1 {[%clk 0:02:20]}  Rhe8 {[%clk 0:02:15]} 22. b3 {[%clk 0:02:12]}  e5 {[%clk 0:02:14]} 23. Qc3 {[%clk 0:02:12]}  Qb6 {[%clk 0:02:08]} 24. Ng3 {[%clk 0:02:08]}  Rc8 {[%clk 0:01:53]} 25. Qd2 {[%clk 0:02:07]}  Red8 {[%clk 0:01:53]} 26. Nh1 {[%clk 0:01:53]}  e4 {[%clk 0:01:45]} 27. Qf2 {[%clk 0:01:19]}  exf3 {[%clk 0:01:39]} 28. Qxf3 {[%clk 0:01:20]}  Nde4 {[%clk 0:01:36]} 29. Ng3 {[%clk 0:01:20]}  Nxg3 {[%clk 0:01:21]} 30. Qxg3+ {[%clk 0:01:21]}  Qc7 {[%clk 0:01:20]} 31. Qf3 {[%clk 0:01:18]}  Qe5 {[%clk 0:01:17]} 32. Rd4 {[%clk 0:01:10]}  Rd7 {[%clk 0:01:06]} 33. Kb2 {[%clk 0:01:06]}  Rdc7 {[%clk 0:01:02]} 34. c3 {[%clk 0:01:05]}  Re7 {[%clk 0:01:00]} 35. Re1 {[%clk 0:01:00]}  Rce8 {[%clk 0:00:57]} 36. Nd2 {[%clk 0:00:58]}  Ka8 {[%clk 0:00:55]} 37. Nf1 {[%clk 0:00:57]}  Qg5 {[%clk 0:00:53]} 38. Red1 {[%clk 0:00:54]}  a6 {[%clk 0:00:46]} 39. Qf4 {[%clk 0:00:49]}  Qh4 {[%clk 0:00:40]} 40. a4 {[%clk 0:00:33]}  Re4 {[%clk 0:00:39]} 41. Rxe4 {[%clk 0:00:32]}  Rxe4 {[%clk 0:00:37]} 42. Qc7 {[%clk 0:00:32]}  Qf2+ {[%clk 0:00:36]} 43. Kc1 {[%clk 0:00:25]}  Qa2 {[%clk 0:00:33]} 44. Nd2 {[%clk 0:00:24]}  Re8 {[%clk 0:00:24]} 45. a5 {[%clk 0:00:20]}  Rf8 {[%clk 0:00:19]} 46. Rf1 {[%clk 0:00:18]}  Re8 {[%clk 0:00:18]} 47. Rf4 {[%clk 0:00:16]}  Rf8 {[%clk 0:00:16]} 48. Rb4 {[%clk 0:00:16]}  Rb8 {[%clk 0:00:15]} 49. Qxf7 {[%clk 0:00:16]}  Qa1+ {[%clk 0:00:15]} 50. Kc2 {[%clk 0:00:16]}  Qa2+ {[%clk 0:00:14]} 51. Kd3 {[%clk 0:00:16]}  Qxa5 {[%clk 0:00:14]} 52. Qxg7 {[%clk 0:00:16]}  Ne8 {[%clk 0:00:13]} 53. Qd4 {[%clk 0:00:16]}  Nd6 {[%clk 0:00:13]} 54. Qb6 {[%clk 0:00:16]}  Qxb6 {[%clk 0:00:11]} 55. Rxb6 {[%clk 0:00:17]}  Nb5 {[%clk 0:00:11]} 56. Rxh6 {[%clk 0:00:17]}  Rg8 {[%clk 0:00:11]} 57. Rg6 {[%clk 0:00:16]}  Rh8 {[%clk 0:00:11]} 58. h6 {[%clk 0:00:17]}  Nc7 {[%clk 0:00:11]} 59. g5 {[%clk 0:00:17]}  Ne8 {[%clk 0:00:11]} 60. Re6 {[%clk 0:00:17]}  Nc7 {[%clk 0:00:11]} 61. Re7 {[%clk 0:00:17]}  Nb5 {[%clk 0:00:10]} 62. h7 {[%clk 0:00:17]}  Nd6 {[%clk 0:00:09]} 63. g6 {[%clk 0:00:18]}  Nf5 {[%clk 0:00:10]} 64. Rf7 {[%clk 0:00:18]}  Nh6 {[%clk 0:00:09]} 65. g7 {[%clk 0:00:15]}  Rxh7 {[%clk 0:00:08]} 66. g8=Q+ {[%clk 0:00:15]}  Nxg8 {[%clk 0:00:07]} 67. Rxh7 {[%clk 0:00:16]} 1-0


[Site "https://www.chess.com"]

[Event "Titled Tuesday Blitz December 27 Early 2022"]
[White "Strahov, Andrej"]
[Black "Clawitter, Craig"]
[WhiteFideId "4165489"]
[BlackFideId "2023105"]
[WhiteElo "2398"]
[BlackElo "2050"]
[Result "1-0"]
[Round "03"]
[TimeControl "180+2"]
[Date "2022.12.27"]
[WhiteClock "0:00:48"]
[BlackClock "0:00:01"]

1. e4 {[%clk 0:03:00]}  e6 {[%clk 0:03:00]} 2. d4 {[%clk 0:02:59]}  d5 {[%clk 0:03:01]} 3. Nc3 {[%clk 0:02:59]}  Bb4 {[%clk 0:03:00]} 4. Ne2 {[%clk 0:03:00]}  dxe4 {[%clk 0:03:00]} 5. a3 {[%clk 0:03:00]}  Be7 {[%clk 0:03:00]} 6. Nxe4 {[%clk 0:02:59]}  Nf6 {[%clk 0:03:00]} 7. Nxf6+ {[%clk 0:02:55]}  Bxf6 {[%clk 0:03:00]} 8. g4 {[%clk 0:02:54]}  Nc6 {[%clk 0:02:58]} 9. Be3 {[%clk 0:02:52]}  e5 {[%clk 0:02:57]} 10. d5 {[%clk 0:02:49]}  Nd4 {[%clk 0:02:38]} 11. Nc3 {[%clk 0:02:11]}  O-O {[%clk 0:02:23]} 12. Bg2 {[%clk 0:01:58]}  g6 {[%clk 0:02:10]} 13. O-O {[%clk 0:01:55]}  Bg7 {[%clk 0:02:01]} 14. h3 {[%clk 0:01:50]}  f5 {[%clk 0:01:53]} 15. gxf5 {[%clk 0:01:45]}  gxf5 {[%clk 0:01:49]} 16. Bxd4 {[%clk 0:01:39]}  exd4 {[%clk 0:01:48]} 17. Ne2 {[%clk 0:01:27]}  f4 {[%clk 0:01:32]} 18. f3 {[%clk 0:01:11]}  Qxd5 {[%clk 0:01:03]} 19. Qd2 {[%clk 0:01:09]}  Qg5 {[%clk 0:00:52]} 20. Kh2 {[%clk 0:01:08]}  c5 {[%clk 0:00:51]} 21. Rg1 {[%clk 0:01:09]}  Kh8 {[%clk 0:00:44]} 22. c3 {[%clk 0:01:07]}  Be6 {[%clk 0:00:22]} 23. Bf1 {[%clk 0:01:06]}  Qh4 {[%clk 0:00:19]} 24. cxd4 {[%clk 0:01:04]}  cxd4 {[%clk 0:00:17]} 25. Nxd4 {[%clk 0:01:00]}  Rad8 {[%clk 0:00:15]} 26. Rxg7 {[%clk 0:01:00]}  Kxg7 {[%clk 0:00:08]} 27. Nxe6+ {[%clk 0:01:00]}  Kh8 {[%clk 0:00:07]} 28. Qc3+ {[%clk 0:00:52]}  Rf6 {[%clk 0:00:05]} 29. Nxd8 {[%clk 0:00:52]}  Qg3+ {[%clk 0:00:04]} 30. Kh1 {[%clk 0:00:52]}  Kg7 {[%clk 0:00:01]} 31. Rd1 {[%clk 0:00:48]} 1-0


[Site "https://www.chess.com"]

[Event "Titled Tuesday Blitz December 27 Early 2022"]
[White "Tanenbaum, Zachary"]
[Black "Forgacs, Attila Jr."]
[WhiteFideId "2060850"]
[BlackFideId "773654"]
[WhiteElo "2261"]
[BlackElo "2264"]
[Result "0-1"]
[Round "03"]
[TimeControl "180+2"]
[Date "2022.12.27"]
[WhiteClock "0:00:53"]
[BlackClock "0:01:39"]

1. e4 {[%clk 0:02:59]}  e5 {[%clk 0:02:59]} 2. Nf3 {[%clk 0:02:59]}  Nc6 {[%clk 0:03:00]} 3. Bc4 {[%clk 0:03:00]}  Nf6 {[%clk 0:03:00]} 4. d3 {[%clk 0:02:59]}  h6 {[%clk 0:02:59]} 5. Nbd2 {[%clk 0:02:59]}  d6 {[%clk 0:02:59]} 6. a4 {[%clk 0:02:59]}  g5 {[%clk 0:02:59]} 7. Nf1 {[%clk 0:02:58]}  Bg7 {[%clk 0:03:00]} 8. Ne3 {[%clk 0:02:56]}  O-O {[%clk 0:02:57]} 9. h4 {[%clk 0:02:39]}  g4 {[%clk 0:02:56]} 10. Nh2 {[%clk 0:02:38]}  h5 {[%clk 0:02:55]} 11. f3 {[%clk 0:02:32]}  Nxe4 {[%clk 0:02:34]} 12. fxe4 {[%clk 0:02:14]}  Qxh4+ {[%clk 0:02:35]} 13. Kd2 {[%clk 0:02:14]}  Bh6 {[%clk 0:02:23]} 14. Qe1 {[%clk 0:01:43]}  g3 {[%clk 0:02:22]} 15. Nf3 {[%clk 0:01:34]}  Bxe3+ {[%clk 0:02:22]} 16. Kxe3 {[%clk 0:01:34]}  Qf4+ {[%clk 0:02:20]} 17. Ke2 {[%clk 0:01:34]}  Qg4 {[%clk 0:02:12]} 18. Rh3 {[%clk 0:01:33]}  Nd4+ {[%clk 0:02:08]} 19. Kf1 {[%clk 0:01:00]}  Qxf3+ {[%clk 0:01:39]} 20. gxf3 {[%clk 0:00:58]}  Bxh3+ {[%clk 0:01:38]} 21. Kg1 {[%clk 0:00:53]}  Nxf3+ {[%clk 0:01:39]} 22. Kh1 {[%clk 0:00:53]}  g2# {[%clk 0:01:39]} 0-1


[Site "https://www.chess.com"]